fUSD/lending_fUSD_20260321
["ID","MTS","AMOUNT","RATE_DAILY","PERIOD"]
[408674819,1774105840766,-41.24075829,0.00016,2]
[408674820,1774105840777,-34443.99712,0.00016,2]
[408674821,1774105840870,-199.22935491,0.00013594,2]
[408674822,1774105840880,-92.17615827,0.00014406,2]
[408674823,1774105840903,-107.05319664,0.00014406,2]
[408674824,1774105840913,-2466.0,0.00015739,2]
[408674825,1774105840922,-32017.80961363,0.00016,2]
[408674826,1774105840933,-137904.94246208,0.00016,2]
[408674827,1774105840945,-781.06101906,0.00016,2]
[408674828,1774105840956,-674.66537723,0.00016,2]
[408674829,1774105840968,-4410.96596465,0.00016,2]
[408674830,1774105841094,-70623.25288055,0.00016,2]
[408674831,1774105841105,-35325.0601595,0.00016,2]
[408674832,1774105841116,-7721.94853633,0.00016,2]
[408674833,1774105841132,-624443.12960401,0.00016,2]
[408674837,1774105845618,-6471.28269683,0.0001338,2]
[408674838,1774105845683,-1637.5274,0.0001338,2]
[408674840,1774105845694,-590.0035601,0.0001338,2]
[408674841,1774105845708,-3481.87971153,0.0001338,2]
[408674842,1774105845747,-18314.47348714,0.0001338,2]
[408674843,1774105845758,-3672.2716831,0.0001338,2]
[408674844,1774105845817,-1030.1308482,0.0001338,2]
[408674845,1774105845829,-1772.92596407,0.0001338,2]
[408674846,1774105845841,-70630.0,0.0001338,2]
[408674847,1774105845935,-800.47612132,0.0001338,2]
[408674849,1774105845947,-743.33980056,0.0001338,2]
[408674850,1774105845959,-2509.07303865,0.0001338,2]
[408674851,1774105846010,-6600.82472289,0.0001338,2]
[408674852,1774105846021,-2343.68669856,0.0001338,2]
[408674853,1774105846033,-554.80295644,0.0001338,2]
[408674854,1774105846071,-4602.32476951,0.0001338,2]
[408674855,1774105846081,-289.50515635,0.00015847,2]
[408674856,1774105846091,-3146.97074083,0.00016,2]
[408674857,1774105846102,-760.19720774,0.00016,2]
[408674858,1774105846113,-963.18414339,0.00016,2]
[408674859,1774105846124,-4131.7238808,0.00016,2]
[408674890,1774105921270,763.37,0.0001242,2]
[408674891,1774106035805,5000.01,0.00012618,2]
[408674892,1774106035829,5000.01,0.00012618,2]
[408674893,1774106035852,5000.01,0.00012618,2]
[408674894,1774106035875,9236.64,0.00012618,2]
[408674895,1774106035896,10000.01,0.00012618,2]
[408674896,1774106035916,10000.01,0.00012618,2]
[408674897,1774106039183,-2229.64,0.00012618,2]
[408674898,1774106039287,-5000.01,0.00012618,2]
[408674899,1774106039417,-5000.01,0.00012618,2]
[408674900,1774106052119,-300.0,0.00012617,2]
[408674901,1774106055081,-2162.08059192,0.00012618,2]
[408674902,1774106057948,-10000.01,0.00012618,2]
[408674903,1774106058040,-10000.01,0.00012618,2]
[408674904,1774106061055,-10000.01,0.00012618,2]
[408674905,1774106081064,-4995.29940808,0.00012618,2]
[408674906,1774106081097,-9.41118384,0.00012618,2]
[408674907,1774106084074,-1663.29881616,0.00012618,2]
[408674913,1774106173918,200.0,0.000129,2]
[408674914,1774106206703,628.41362122,0.00012757,2]
[408674915,1774106283921,-4088.80838468,0.00013085,2]
[408674916,1774106283947,-250.0,0.00013098,2]
[408674917,1774106283972,-517.0,0.00013111,2]
[408674918,1774106283995,-144.19161532,0.00013184,2]
[408674919,1774106285702,-155.80838468,0.00013184,2]
[408674920,1774106285724,-150.0,0.00013184,2]
[408674921,1774106285744,-300.0,0.00013184,2]
[408674922,1774106285764,-2911.67665093,0.00013185,2]
[408674923,1774106285788,-220.29888055,0.00013185,2]
[408674924,1774106285809,-1262.21608384,0.00013185,2]
[408674925,1774106287618,-5000.0,0.00013185,2]
[408674926,1774106289092,-5000.0,0.00013185,2]
[408674927,1774106290197,-5000.0,0.00013185,2]
[408674928,1774106291122,-2079.99680429,0.00013185,2]
[408674929,1774106291145,-2920.00319571,0.00013185,2]
[408674930,1774106292191,-5000.0,0.00013185,2]
[408674931,1774106293898,-3367.51159313,0.00013185,2]
[408674932,1774106293918,-1133.0,0.00013272,2]
[408674933,1774106293941,-300.0,0.00013272,2]
[408674934,1774106293963,-199.48840687,0.00013272,2]
[408674935,1774106297268,-1000.51159313,0.00013272,2]
[408674936,1774106297288,-500.0,0.00013273,2]
[408674937,1774106297309,-500.0,0.00013273,2]
[408674938,1774106297329,-505.56611791,0.00013273,2]
[408674939,1774106297352,-499.84886172,0.00013273,2]
[408674940,1774106297373,-500.0,0.00013273,2]
[408674941,1774106297395,-232.99661061,0.00013273,2]
[408674942,1774106297418,-500.0,0.00013273,2]
[408674943,1774106297446,-500.0,0.00013284,2]
[408674944,1774106297467,-164.20338683,0.00013284,2]
[408674945,1774106297493,-96.8734298,0.00013284,2]
[408674946,1774106335235,-5000.0,0.00013185,2]
[408674947,1774106353113,-5000.0,0.00013185,2]
[408674948,1774106354365,-5000.0,0.00013185,2]
[408674949,1774106355741,-5000.0,0.00013185,2]
[408674950,1774106356834,-5000.0,0.00013185,2]
[408674951,1774106357742,-5000.0,0.00013185,2]
[408674952,1774106358863,-5000.0,0.00013185,2]
[408674953,1774106359799,-5000.0,0.00013185,2]
[408674954,1774106360558,-5000.0,0.00013185,2]
[408674955,1774106361186,-5000.0,0.00013185,2]
[408674956,1774106361771,-5000.0,0.00013185,2]
[408674957,1774106362314,-5000.0,0.00013185,2]
[408674958,1774106363750,-5000.0,0.00013185,2]
[408674959,1774106366089,-5000.0,0.00013185,2]
[408674960,1774106682722,-1439.4063214,0.00013079,2]
[408674961,1774106682778,-6921.1973572,0.00013079,2]
[408674962,1774106685610,-10000.01,0.00013079,2]
[408674963,1774106835612,10000.01,0.000129,2]
[408674964,1774106844568,-10000.01,0.000129,2]
[408674965,1774106850703,-3158.03,0.000129,2]
[408674966,1774106850726,-3683.95,0.000129,2]
[408674967,1774106858970,9999.53,0.00016002,120]
[408674968,1774106865734,10000.01,0.0001279,2]
[408674969,1774106872012,-0.01,0.0001279,2]
[408674970,1774106933591,166.42,0.00012804,2]
[408674971,1774106935642,9833.59,9.5e-05,3]
[408674972,1774106937669,-3066.8197387,9.5e-05,3]
[408674973,1774106945111,-1852.42,0.00012968,2]
[408674974,1774106945133,-37.70647138,0.00013,2]
[408674975,1774106947130,-5604.5340286,0.00013,2]
[408674976,1774106947154,-5533.0,0.00013,3]
[408674977,1774106947179,-3170.62188473,0.0001305,2]
[408674978,1774106947203,-300.0,0.00013077,2]
[408674979,1774106947227,-1200.0,0.00013078,2]
[408674980,1774106947251,-8099.1365091,0.00013079,2]
[408674981,1774106947274,-300.0,0.00013183,2]
[408674982,1774106947297,-258.0,0.00013184,2]
[408674983,1774106947320,-150.0,0.00013184,2]
[408674984,1774106947346,-14750.7016,0.00013185,2]
[408674985,1774106947366,-1000.0,0.00013185,2]
[408674986,1774106947385,-250.0,0.00013185,2]
[408674987,1774106947682,-15785.59258729,0.00013185,2]
[408674988,1774106951108,-2372.83521271,0.00013185,2]
[408674989,1774106951128,-628.1322,0.00013185,2]
[408674990,1774106951148,-10286.4164,0.00013185,2]
[408674991,1774106951167,-2916.1278,0.00013185,2]
[408674992,1774106951187,-2500.0,0.00013185,2]
[408674993,1774106951207,-10158.76330992,0.00013236,2]
[408674994,1774106951231,-500.0,0.00013284,2]
[408674995,1774106951254,-500.0,0.00013284,2]
[408674996,1774106951279,-500.0,0.00013284,2]
[408674997,1774106951302,-500.0,0.00013284,2]
[408674998,1774106951324,-500.0,0.00013284,2]
[408674999,1774106951347,-500.0,0.00013284,2]
[408675000,1774106951370,-500.0,0.00013284,2]
[408675001,1774106951393,-500.0,0.00013284,2]
[408675002,1774106951417,-285.38058744,0.00013284,2]
[408675003,1774106951441,-500.0,0.00013284,2]
[408675004,1774106951464,-285.38058744,0.00013284,2]
[408675005,1774106951488,-500.0,0.00013284,2]
[408675006,1774106951512,-500.0,0.00013284,2]
[408675007,1774106951535,-500.0,0.00013284,2]
[408675008,1774106951558,-500.0,0.00013284,2]
[408675009,1774106951583,-500.0,0.00013284,2]
[408675010,1774106951607,-500.0,0.00013284,2]
[408675011,1774106951632,-214.61941256,0.00013284,2]
[408675012,1774106951652,-200.87219527,0.00013284,2]
[408675013,1774106951672,-500.0,0.00013284,2]
[408675014,1774106951691,-500.0,0.00013284,2]
[408675015,1774106951711,-319.79387466,0.00013284,2]
[408675017,1774107022413,5533.0,0.000128,5]
[408675023,1774107031902,-450.0,0.00013085,2]
[408675024,1774107031914,-1228.70968045,0.00013085,2]
[408675025,1774107031968,-2925.04175782,0.00013085,2]
[408675026,1774107032030,-1119.8508579,0.00013085,2]
[408675027,1774107032091,-887.06669,0.00013085,2]
[408675028,1774107032103,-1800.0,0.00013085,2]
[408675029,1774107032114,-5563.98821051,0.00013085,2]
[408675050,1774107037909,-8771.8,0.00013085,2]
[408675051,1774107037921,-4810.94195086,0.00013085,2]
[408675052,1774107037932,-639.31888652,0.00013085,2]
[408675053,1774107037944,-68504.90146594,0.00013085,2]
[408675054,1774107037953,-1200.0,0.00013283,2]
[408675055,1774107037963,-180.20612534,0.00013284,2]
[408675056,1774107037972,-500.0,0.00013284,2]
[408675057,1774107037985,-500.0,0.00013284,2]
[408675058,1774107037995,-500.0,0.00013284,2]
[408675059,1774107038004,-500.0,0.00013284,2]
[408675060,1774107038014,-524.37856653,0.00013284,2]
[408675061,1774107038023,-500.0,0.00013284,2]
[408675062,1774107038034,-500.0,0.00013284,2]
[408675063,1774107038043,-502.45238885,0.00013284,2]
[408675064,1774107038052,-366.12709315,0.00013284,2]
[408675065,1774107038063,-500.0,0.00013285,2]
[408675066,1774107038072,-150.0,0.00013336,2]
[408675067,1774107038082,-16540.0732976,0.00013373,2]
[408675068,1774107038091,-9456.43,0.00013473,2]
[408675069,1774107038100,-299.99,0.00013473,2]
[408675070,1774107038110,-999.99,0.00013473,2]
[408675071,1774107038119,-150.99,0.00013473,2]
[408675072,1774107038132,-333.17,0.00013473,2]
[408675073,1774107038141,-9999.99,0.00013473,2]
[408675074,1774107038150,-499.99,0.00013473,2]
[408675075,1774107038159,-9999.99,0.00013473,2]
[408675076,1774107038169,-1618.27,0.00013473,2]
[408675078,1774107038178,-23270.6,0.00013473,2]
[408675080,1774107038188,-3202.89,0.00013473,2]
[408675082,1774107038198,-2114.07,0.00013473,2]
[408675085,1774107038207,-1568.67,0.00013473,2]
[408675086,1774107038216,-73903.42,0.00013473,2]
[408675088,1774107038225,-3671.02,0.00013473,2]
[408675090,1774107038236,-9999.99,0.00013473,2]
[408675092,1774107038245,-858.77,0.00013473,2]
[408675094,1774107038254,-517.34,0.00013532,2]
[408675096,1774107038263,-350.92,0.00013532,2]
[408675098,1774107038272,-312.59,0.00013532,2]
[408675100,1774107038281,-44623.8,0.00013573,2]
[408675102,1774107038290,-14089.29,0.00013573,2]
[408675104,1774107038300,-1189.17,0.00013573,2]
[408675106,1774107038309,-150.99,0.00013573,2]
[408675108,1774107038318,-8449.63,0.00013573,2]
[408675110,1774107038327,-2456.36,0.00013573,2]
[408675111,1774107038336,-1547.4,0.00013573,2]
[408675112,1774107038346,-9999.99,0.00013573,2]
[408675113,1774107038355,-16540.07329758,0.00013654,2]
[408675114,1774107038365,-500.0,0.00013698,2]
[408675115,1774107038374,-858.77,0.00013747,2]
[408675116,1774107038385,-16540.07329758,0.00013935,2]
[408675117,1774107038395,-858.77,0.00014021,2]
[408675118,1774107038405,-2500.0,0.00014265,2]
[408675119,1774107038415,-253.55651067,0.00014265,2]
[408675120,1774107038424,-250.0,0.00014265,2]
[408675121,1774107038433,-858.77,0.00014295,2]
[408675122,1774107038443,-250.0,0.00014386,2]
[408675123,1774107038452,-500.0,0.00014398,2]
[408675124,1774107038461,-9142.88697891,0.000144,2]
[408675125,1774107038470,-3472.79,0.00014411,2]
[408675126,1774107038480,-500.0,0.0001445,2]
[408675127,1774107038490,-500.0,0.0001445,2]
[408675128,1774107038499,-500.0,0.0001445,2]
[408675129,1774107038512,-500.0,0.0001445,2]
[408675130,1774107038521,-500.0,0.0001445,2]
[408675131,1774107038531,-500.0,0.0001445,2]
[408675132,1774107038541,-500.0,0.0001445,2]
[408675133,1774107038550,-500.37853052,0.00014473,2]
[408675134,1774107038559,-500.64649173,0.00014473,2]
[408675135,1774107038569,-500.0,0.000145,2]
[408675136,1774107038578,-500.0,0.000145,2]
[408675137,1774107038587,-500.0,0.000145,2]
[408675138,1774107038596,-500.0,0.000145,2]
[408675139,1774107038605,-500.0,0.000145,2]
[408675140,1774107038614,-22903.57,0.00014504,2]
[408675141,1774107038624,-193.63757919,0.0001452,2]
[408675142,1774107038633,-305.46,0.00014525,2]
[408675143,1774107038642,-9142.88697891,0.00014567,2]
[408675144,1774107038651,-858.77,0.00014569,2]
[408675145,1774107038662,-1680.0,0.00014611,2]
[408675146,1774107038671,-858.77,0.00014843,2]
[408675147,1774107038680,-243.0,0.0001485,2]
[408675148,1774107038689,-243.0,0.00014862,2]
[408675149,1774107038699,-192.76152049,0.00014978,2]
[408675150,1774107038708,-569.27962609,0.00014998,2]
[408675151,1774107038717,-501.14781229,0.00014998,2]
[408675152,1774107038726,-250.0,0.00015,2]
[408675153,1774107038736,-200.0,0.00015023,2]
[408675154,1774107038745,-5582.7933338,0.00015045,2]
[408675155,1774107038754,-1000.0,0.00015048,2]
[408675156,1774107038764,-1000.0,0.00015048,2]
[408675157,1774107038774,-562.85,0.00015068,2]
[408675158,1774107038783,-250.0,0.00015078,2]
[408675159,1774107038792,-500.0,0.00015078,2]
[408675160,1774107038801,-500.0,0.00015078,2]
[408675161,1774107038811,-280.93336224,0.00015078,2]
[408675162,1774107038820,-500.0,0.00015078,2]
[408675163,1774107038829,-500.0,0.00015078,2]
[408675164,1774107038839,-500.0,0.00015078,2]
[408675165,1774107038848,-500.0,0.00015078,2]
[408675166,1774107038858,-500.0,0.00015078,2]
[408675167,1774107038867,-500.0,0.00015078,2]
[408675168,1774107038876,-500.0,0.00015078,2]
[408675169,1774107038890,-250.0,0.00015078,2]
[408675170,1774107038899,-500.0,0.00015078,2]
[408675171,1774107038909,-250.0,0.00015078,2]
[408675172,1774107038918,-500.0,0.00015078,2]
[408675173,1774107038927,-250.0,0.00015078,2]
[408675174,1774107038937,-250.0,0.00015078,2]
[408675175,1774107038946,-500.0,0.00015078,2]
[408675176,1774107038955,-500.0,0.00015078,2]
[408675177,1774107038965,-250.0,0.00015078,2]
[408675178,1774107038974,-250.0,0.00015078,2]
[408675179,1774107038985,-500.0,0.00015078,2]
[408675180,1774107038996,-500.0,0.00015078,2]
[408675181,1774107039009,-250.0,0.00015078,2]
[408675182,1774107039019,-250.0,0.00015078,2]
[408675183,1774107039029,-500.0,0.00015078,2]
[408675184,1774107039039,-500.0,0.00015078,2]
[408675185,1774107039048,-250.0,0.00015078,2]
[408675186,1774107039057,-268.3661478,0.00015078,2]
[408675187,1774107039068,-516.47340423,0.00015078,2]
[408675188,1774107039079,-500.0,0.00015078,2]
[408675189,1774107039089,-250.0,0.00015078,2]
[408675190,1774107039098,-500.0,0.00015078,2]
[408675191,1774107039108,-250.0,0.00015078,2]
[408675192,1774107039119,-500.0,0.00015078,2]
[408675193,1774107039129,-500.0,0.00015078,2]
[408675194,1774107039138,-250.0,0.00015078,2]
[408675195,1774107039148,-500.0,0.00015078,2]
[408675196,1774107039158,-250.0,0.00015078,2]
[408675197,1774107039168,-250.0,0.00015078,2]
[408675198,1774107039177,-250.0,0.00015078,2]
[408675199,1774107039186,-250.0,0.00015078,2]
[408675200,1774107039195,-260.83847575,0.00015078,2]
[408675201,1774107039204,-250.0,0.00015078,2]
[408675202,1774107039214,-250.0,0.00015078,2]
[408675203,1774107039223,-250.0,0.00015078,2]
[408675204,1774107039233,-250.0,0.00015078,2]
[408675205,1774107039242,-335.32119913,0.00015078,2]
[408675206,1774107039251,-250.0,0.00015078,2]
[408675207,1774107039260,-151.0,0.00015078,2]
[408675208,1774107039270,-250.0,0.00015078,2]
[408675209,1774107039281,-250.0,0.00015078,2]
[408675210,1774107039291,-250.0,0.00015078,2]
[408675211,1774107039300,-250.0,0.00015078,2]
[408675212,1774107039310,-250.0,0.00015078,2]
[408675213,1774107039319,-250.0,0.00015078,2]
[408675214,1774107039328,-250.0,0.00015078,2]
[408675215,1774107039338,-250.0,0.00015078,2]
[408675216,1774107039347,-250.0,0.00015078,2]
[408675217,1774107039357,-250.0,0.00015078,2]
[408675218,1774107039366,-192.76152047,0.0001511,2]
[408675219,1774107039375,-858.77,0.00015117,2]
[408675220,1774107039385,-1228.49,0.00015143,2]
[408675221,1774107039394,-192.76152047,0.00015241,2]
[408675222,1774107039403,-250.0,0.00015263,2]
[408675223,1774107039413,-243.0,0.00015292,2]
[408675224,1774107039422,-168.0,0.00015298,2]
[408675225,1774107039431,-350.0,0.00015301,2]
[408675226,1774107039440,-168.0,0.00015302,2]
[408675227,1774107039450,-268.0,0.00015316,2]
[408675228,1774107039459,-168.0,0.00015325,2]
[408675229,1774107039469,-243.0,0.00015332,2]
[408675230,1774107039479,-500.0,0.0001536,2]
[408675231,1774107039488,-500.0,0.0001536,2]
[408675232,1774107039498,-500.0,0.0001536,2]
[408675233,1774107039507,-500.0,0.0001536,2]
[408675234,1774107039517,-208.50828894,0.0001536,2]
[408675235,1774107039526,-192.76152047,0.00015373,2]
[408675236,1774107039535,-858.77,0.00015391,2]
[408675237,1774107039544,-168.0,0.00015412,2]
[408675238,1774107039554,-168.0,0.0001544,2]
[408675239,1774107039563,-268.0,0.00015442,2]
[408675240,1774107039572,-268.0,0.00015461,2]
[408675241,1774107039582,-1245.6895706,0.00015484,2]
[408675242,1774107039592,-5000.0,0.00015498,2]
[408675243,1774107039601,-268.0,0.00015522,2]
[408675244,1774107039611,-260.096312,0.00015528,7]
[408675245,1774107039619,-268.0,0.00015563,2]
[408675246,1774107039628,-268.0,0.00015591,2]
[408675247,1774107039638,-1500.0,0.00015596,2]
[408675248,1774107039647,-387.45023446,0.00015596,2]
[408675249,1774107039656,-268.0,0.00015659,2]
[408675250,1774107039668,-858.77,0.00015665,2]
[408675251,1774107039679,-979.16666667,0.00015679,2]
[408675252,1774107039688,-160.0,0.00015679,2]
[408675253,1774107039698,-309.208988,0.0001568,7]
[408675254,1774107039706,-350.0,0.00015707,2]
[408675255,1774107039716,-268.0,0.00015796,2]
[408675256,1774107039726,-224.0,0.00015802,2]
[408675257,1774107039737,-350.0,0.00015806,2]
[408675258,1774107039747,-318.02127801,0.00015825,2]
[408675259,1774107039759,-500.0,0.00015825,2]
[408675260,1774107039769,-500.0,0.00015825,2]
[408675261,1774107039779,-500.0,0.00015825,2]
[408675262,1774107039788,-299.68792232,0.00015825,2]
[408675263,1774107039798,-187.04841564,0.00015825,2]
[408675264,1774107039807,-98056.2556147,0.00015826,2]
[408675265,1774107039816,-268.0,0.00015828,2]
[408675266,1774107039825,-268.0,0.00015832,2]
[408675267,1774107039835,-150.0,0.00015841,2]
[408675268,1774107039844,-150.0,0.00015841,14]
[408675269,1774107039854,-4143.3563716,0.00015845,2]
[408675270,1774107039864,-2000.0,0.0001589,2]
[408675271,1774107039874,-503.01706708,0.00015899,2]
[408675272,1774107039886,-3517.815,0.000159,2]
[408675273,1774107039896,-1059.2752,0.000159,2]
[408675274,1774107039906,-1178.52133832,0.000159,2]
[408675275,1774107039915,-611.19136798,0.000159,2]
[408675276,1774107039926,-366.4469759,0.000159,2]
[408675277,1774107039935,-1262.94609,0.000159,2]
[408675278,1774107039945,-420.95287987,0.000159,2]
[408675279,1774107039954,-289.64454011,0.000159,2]
[408675280,1774107039964,-348.1590763,0.000159,2]
[408675281,1774107039974,-4223.0,0.000159,5]
[408675282,1774107039983,-3377.0,0.000159,5]
[408675283,1774107039996,-225.696003,0.00015939,2]
[408675284,1774107040006,-858.77,0.00015939,2]
[408675285,1774107040015,-350.0,0.00015941,2]
[408675286,1774107040024,-1962.81419762,0.00015956,2]
[408675288,1774107040206,-6945.0,0.00015973,2]
[408675289,1774107040216,-500.0,0.00015973,2]
[408675290,1774107040225,-2315.869,0.00015973,2]
[408675291,1774107040235,-240.445,0.00015973,2]
[408675292,1774107040244,-218.0,0.00015983,2]
[408675293,1774107040253,-288.32393429,0.0001599,2]
[408675294,1774107040263,-288.32393429,0.0001599,2]
[408675295,1774107040272,-288.32393429,0.0001599,2]
[408675296,1774107040281,-151.0,0.00015997,2]
[408675297,1774107040290,-161.206,0.00015999,2]
[408675298,1774107040299,-898051.83109088,0.00016,2]
[408675299,1774107040693,-1597.11134253,0.00016,2]
[408675300,1774107040708,-796.55986639,0.00016,2]
[408675301,1774107040720,-4264.19002541,0.00016,2]
[408675302,1774107040730,-22711.83799274,0.00016,2]
[408675303,1774107040745,-2000.0,0.000159,2]
[408675304,1774107040754,-9700.40405899,0.00016,2]
[408675305,1774107040765,-2107.3759576,0.00016,2]
[408675306,1774107040776,-1860.39589721,0.00016,2]
[408675307,1774107040788,-739.90977773,0.00016,2]
[408675308,1774107040800,-4934.206548,0.00016,2]
[408675309,1774107040877,-2500.0,0.00013185,2]
[408675310,1774107040886,-5494.92526891,0.00014215,2]
[408675311,1774107040898,-475.80353924,0.00014215,2]
[408675312,1774107040913,-695.34,0.00014215,2]
[408675313,1774107040926,-9874.00448943,0.00014215,2]
[408675314,1774107040936,-9142.88697891,0.00014733,2]
[408675315,1774107040947,-192.76152047,0.00015505,2]
[408675316,1774107040957,-665.87368712,0.00016,2]
[408675317,1774107040969,-998.96929937,0.00016,2]
[408675318,1774107040981,-2315.09651318,0.00016,2]
[408675319,1774107040995,-6406.78117923,0.00016,2]
[408675320,1774107041014,-35893.8876836,0.00016,2]
[408675321,1774107041031,-502.96889993,0.00016,2]
[408675322,1774107041043,-113694.44986842,0.00016,2]
[408675334,1774107043150,-1342.2,0.00016,2]
[408675335,1774107043208,-500.0,0.00016,2]
[408675336,1774107043220,-341.04,0.00016,2]
[408675341,1774107045830,-500.0,0.00013284,2]
[408675342,1774107045840,-500.0,0.00013284,2]
[408675343,1774107045850,-500.0,0.00013284,2]
[408675344,1774107045860,-500.0,0.00013284,2]
[408675345,1774107045870,-14253.0,0.00014496,2]
[408675346,1774107045912,-2287.07329758,0.00014496,2]
[408675347,1774107045921,-6664.45498452,0.000149,2]
[408675348,1774107045932,-2478.43199439,0.000149,2]
[408675349,1774107045942,-192.76152047,0.00015637,2]
[408675350,1774107045951,-75787.68902706,0.00016,2]
[408675351,1774107045963,-14664.699,0.00016,2]
[408675352,1774107045974,-277.0208552,0.00016,2]
[408675353,1774107045993,-518.66332063,0.00013284,2]
[408675354,1774107046003,-3552.03993187,0.00016,2]
[408675542,1774107355222,2901.21,7.075e-05,2]
[408675543,1774107355406,2901.21,7.447e-05,2]
[408675544,1774107355613,2901.21,7.82e-05,2]
[408675545,1774107355820,1296.38,8.192e-05,2]
[408675546,1774107355846,1604.83,8.192e-05,2]
[408675547,1774107356031,2901.21,8.564e-05,2]
[408675548,1774107356431,2901.21,8.937e-05,2]
[408675549,1774107356638,2098.8,9.309e-05,2]
[408675550,1774107356659,802.41,9.309e-05,2]
[408675551,1774107356834,2901.21,9.681e-05,2]
[408675552,1774107357034,1296.39,0.00010054,2]
[408675553,1774107357057,1604.82,0.00010054,2]
[408675554,1774107357228,2901.21,0.00010426,2]
[408675555,1774107357436,493.98,0.00010798,2]
[408675556,1774107357460,2407.23,0.00010798,2]
[408675557,1774107357640,2901.21,0.00011171,2]
[408675558,1774107357843,185.53,0.00011543,2]
[408675559,1774107357867,2715.68,0.00011543,2]
[408675560,1774107358048,2901.21,0.00011915,2]
[408675561,1774107358447,2901.21,0.00012288,2]
[408675562,1774107358640,1481.91,0.0001266,2]
[408675563,1774107358664,1419.3,0.0001266,2]
[408675564,1774107394089,-2901.21,0.00013033,2]
[408675565,1774107394120,-639.27739845,0.00013085,2]
[408675566,1774107394151,-395.0,0.00013135,2]
[408675567,1774107394180,-929.0352031,0.00013135,2]
[408675568,1774107394293,-270.9647969,0.00013135,2]
[408675569,1774107394323,-300.0,0.00013135,2]
[408675570,1774107394351,-150.0,0.00013135,2]
[408675571,1774107398754,-4371.59637878,0.00013136,2]
[408675572,1774107398855,-5000.01,0.00013136,2]
[408675573,1774107398959,-5000.01,0.00013136,2]
[408675574,1774107399836,8558.0804062,0.00013073,2]
[408675575,1774107399859,2821.49739253,0.00013073,2]
[408675576,1774107401898,-5000.01,0.00013136,2]
[408675577,1774107402087,-5000.01,0.00013136,2]
[408675578,1774107402190,-5000.01,0.00013136,2]
[408675579,1774107404809,-5000.01,0.00013136,2]
[408675580,1774107405047,-5000.01,0.00013136,2]
[408675581,1774107405207,-5000.01,0.00013136,2]
[408675582,1774107407966,-5000.01,0.00013136,2]
[408675583,1774107408196,-5000.01,0.00013136,2]
[408675584,1774107408308,-5000.01,0.00013136,2]
[408675585,1774107411006,-5000.01,0.00013136,2]
[408675586,1774107411032,-5000.01,0.00013136,2]
[408675587,1774107411132,-5000.01,0.00013136,2]
[408675588,1774107411952,7178.51260747,0.0001307,2]
[408675589,1774107411980,7531.40930653,0.0001307,2]
[408675590,1774107414098,-5000.01,0.00013136,2]
[408675591,1774107414295,-5000.01,0.00013136,2]
[408675592,1774107414428,-5000.01,0.00013136,2]
[408675593,1774107416945,-5000.01,0.00013136,2]
[408675594,1774107417091,-5000.01,0.00013136,2]
[408675595,1774107417419,-5000.01,0.00013136,2]
[408675596,1774107420121,-5000.01,0.00013136,2]
[408675597,1774107421388,300.0,0.00013135,2]
[408675598,1774107423143,-5000.01,0.00013136,2]
[408675599,1774107423240,-5000.01,0.00013136,2]
[408675600,1774107425871,2168.60069347,0.00013073,2]
[408675601,1774107425896,8206.56540968,0.00013073,2]
[408675602,1774107426076,-5000.01,0.00013136,2]
[408675603,1774107429226,-5000.01,0.00013136,2]
[408675604,1774107432147,-5000.01,0.00013136,2]